Cogmind - Beta 13 @@@ ROGUE MODE // 2024.04.13 @ 21:24:46 Player: maddiematics Result: Destroyed by Y-45 Defender with Heavy Assault Rifle Performance ------------- Evolutions (1) 500 Regions Visited (2) 400 Robots Destroyed (5) 25 Value Destroyed (98) 98 Prototype IDs (0) 0 Alien Tech Used (0) 0 Bonus (0) 0 TOTAL SCORE: 1023 Bonus ------- None Cogmind --------- Core Integrity 0/400 Matter 200/300 Energy 100/100 System Corruption 0% Temperature Cool (9) Movement Core (350) Ox6 Location -9/Materials Parts ------- > --- POWER (1) -------- (None) > --- PROPULSION (2) --- (None) > --- UTILITY (3) ------ Large Storage Unit > --- WEAPON (3) ------- (None) > --- INVENTORY (15) --- Wheel Hacking Suite Hacking Suite Small Laser Light Cannon Peak State ------------ > --- POWER ------------ Light Ion Engine > --- PROPULSION ------- Aluminum Leg Aluminum Leg > --- UTILITY ---------- ECM Suite Hacking Suite Hacking Suite > --- WEAPON ----------- Light Assault Rifle Datajack Datajack > --- INVENTORY -------- Wheel Small Laser Light Cannon [Rating: 13] Favorites ----------- Power Light Ion Engine Engine Light Ion Engine Propulsion Aluminum Leg Leg Aluminum Leg Utility Hacking Suite Device ECM Suite Storage Large Storage Unit Hackware Hacking Suite Weapon Datajack Energy Gun Small Laser Ballistic Gun Light Assault Rifle Special Melee Weapon Datajack Build | -11 -10 -9 ------- Run | Yrd Mat Mat Slots Evolved 2 | . . 2 Power . | . . . Propulsion . | . . . Utility 1 | . . 1 Weapon 1 | . . 1 Parts Attached 19 | 5 6 8 Power 3 | 1 2 . Engine 3 | 1 2 . Core . | . . . Reactor . | . . . Propulsion 4 | 2 . 2 Treads . | . . . Leg 4 | 2 . 2 Wheel . | . . . Hover . | . . . Flight . | . . . Utility 5 | . 1 4 Device 1 | . 1 . Storage 2 | . . 2 Processor . | . . . Hackware 2 | . . 2 Protection . | . . . Artifact . | . . . Weapon 7 | 2 3 2 Energy Gun 2 | 1 . 1 Energy Cannon . | . . . Ballistic Gun 3 | 1 2 . Ballistic Cannon . | . . . Launcher . | . . . Special Weapon . | . . . Impact Weapon . | . . . Slashing Weapon . | . . . Piercing Weapon . | . . . Special Melee Weapon 2 | . 1 1 Unidentified Prototypes . | . . . Parts Lost 6 | . 2 4 Power 2 | . 1 1 Propulsion 2 | . . 2 Utility . | . . . Weapon 2 | . 1 1 Highest Loss Streak 4 | . 2 4 To Critical Strikes . | . . . Average Slot Usage (%) 67 | . 69 65 Engine 10 | . 13 7 Leg 21 | . 28 15 Device 4 | . . 8 Storage 2 | . . 4 Hackware 6 | . . 12 Energy Gun 1 | . 2 . Ballistic Gun 10 | . 21 1 Special Melee Weapon 9 | . 3 15 Naked Turns 13 | . . 13 Heaviest Build 27 | 5 7 27 Greatest Support 20 | 20 20 20 Greatest Overweight (x) 8 | . . 8 Average Overweight (x) . | . . . Largest Inventory Capacity 15 | 5 5 15 Average Capacity 6 | 5 5 8 Most Carried 5 | 2 5 5 Average Carried 3 | 1 2 4 Final Capacity 15 | 5 5 15 Final Carried 5 | 1 4 5 Class Distribution -------------------- 76% | Mutant 23% | Hacker-Mutant Dominant Class ---------------- Mutant | -10/Materials Mutant | -9/Materials Resources | -11 -10 -9 ----------- Run | Yrd Mat Mat Matter Collected 297 | 254 43 . Remotely . | . . . Salvage Created 136 | 36 100 . Parts 12 | 1 11 . Haulers Intercepted . | . . . Recyclers Shooed . | . . . Parts Field Recycled . | . . . Retrieved Matter . | . . . Parts Self-Destructed . | . . . Prevented . | . . . Kills | -11 -10 -9 ------- Run | Yrd Mat Mat Combat Hostiles Destroyed 5 | 1 4 . Guns 5 | 1 4 . Classes Destroyed 2 | 1 1 . Swarmer 3 | . 3 . Grunt 2 | 1 1 . Best Kill Streak 2 | 1 2 . Combat Bots Only 2 | 1 2 . Max Kills in Single Turn 2 | 1 2 . Gunslinging 1 | . 1 . Exploded . | . . . Melee . | . . . Uniques/NPCs Destroyed . | . . . Combat | -11 -10 -9 -------- Run | Yrd Mat Mat Hostile Shots Fired 107 | 5 36 66 Missed 34 | 2 11 21 Damage Taken 941 | 34 244 663 Core 447 | . 37 410 Absorbed by Shields . | . . . Core Remaining (%) 92 | 100 85 . Volleys Fired 25 | 4 18 3 Largest 2 | 2 2 1 Hottest 60 | 60 60 45 Shots Fired 42 | 7 32 3 Gun 42 | 7 32 3 Cannon . | . . . Launcher . | . . . Special . | . . . Kinetic 34 | 4 30 . Thermal 5 | 3 2 . Explosive . | . . . Electromagnetic 3 | . . 3 Robot Hit Streak 8 | 3 8 5 Robot Miss Streak 4 | 1 4 . Penetration Max . | . . . Secondary Targets 1 | . 1 . Max Gunslinging Chain 1 | . 1 . Shots Hit Robots 38 | 4 21 13 Core Hits 9 | 2 7 . Critical Kills . | . . . Critical Parts Destroyed 1 | . 1 . Critical Strikes 1 | . 1 . Destroy 1 | . 1 . Melee Attacks 10 | . . 10 Impact . | . . . Slashing . | . . . Piercing . | . . . Sneak Attacks 7 | . . 7 Combat Hostiles . | . . . Follow-up Attacks . | . . . Damage Inflicted 266 | 51 176 39 Guns 266 | 51 176 39 Cannons . | . . . Explosions . | . . . Melee . | . . . Ramming . | . . . Kinetic 191 | 27 164 . Thermal 36 | 24 12 . Explosive . | . . . Electromagnetic 39 | . . 39 Impact . | . . . Slashing . | . . . Piercing . | . . . Highest Corruption . | . . . Average Corruption . | . . . Corruption Purged . | . . . Corruption Blocked . | . . . Overload Shots . | . . . Overflow Damage . | . . . Projectiles . | . . . Explosions . | . . . Melee . | . . . Knockbacks . | . . . Impact . | . . . Kinetic . | . . . Secondary . | . . . Self-Inflicted Damage . | . . . Shots . | . . . Rammed . | . . . Targets Rammed . | . . . Kicked . | . . . Crushed . | . . . Highest Temperature 32 | 32 20 4 Average Temperature 11 | 20 7 3 Received Heat Transfer 375 | 18 96 261 Siege Activations . | . . . Robots Corrupted . | . . . Combat Hostiles . | . . . Parts Fried . | . . . Impact Corruptions . | . . . Robots Melted . | . . . Combat Hostiles . | . . . Parts Melted . | . . . Heat Transferred 75 | 50 25 . Parts Sabotaged . | . . . Parts Stolen . | . . . Parts Stripped . | . . . Power Chain Reactions . | . . . Alert | -11 -10 -9 ------- Run | Yrd Mat Mat Peak Influence 145 | 20 145 94 Initial 61 | . 13 61 Average 78 | 1 109 68 Maximum Alert Level . | . . . Low Security (%) 100 | 100 100 100 Level 1 . | . . . Level 2 . | . . . Level 3 . | . . . Level 4 . | . . . Level 5 . | . . . High Security . | . . . Max Security . | . . . Squads Dispatched 3 | . 1 2 Investigation 2 | . 1 1 Extermination . | . . . Reinforcement 1 | . . 1 Assault . | . . . Garrison . | . . . Intercept . | . . . Searches Triggered . | . . . Construction Impeded . | . . . Haulers Reinforced . | . . . Active Scanning Responses . | . . . Cargo Convoy Interrupts . | . . . Stealth | -11 -10 -9 --------- Run | Yrd Mat Mat Distress Signals 2 | . 1 1 Communications Jammed . | . . . Distress Signals . | . . . Times Spotted 15 | 1 8 6 Peak Tracking Total 5 | 1 5 4 Tactical Retreats 3 | . 2 1 Traps | -11 -10 -9 ------- Run | Yrd Mat Mat Traps Triggered 3 | . 1 2 Indirectly . | . . . Trap Hack Attempts . | . . . Triggered . | . . . Disarmed . | . . . Reprogrammed . | . . . Reused . | . . . Traps Extracted . | . . . Installed . | . . . Triggered . | . . . Machines | -11 -10 -9 ---------- Run | Yrd Mat Mat Machines Disabled . | . . . Max in Single Turn . | . . . Machines Repaired . | . . . Machines Dismantled . | . . . Machines Sabotaged . | . . . Overloaded Fab Kills . | . . . Hacking | -11 -10 -9 --------- Run | Yrd Mat Mat Machines Accessed 4 | . 1 3 Terminals 4 | . 1 3 Fabricators . | . . . Repair Stations . | . . . Recycling Units . | . . . Scanalyzers . | . . . Garrison Access . | . . . Total Hacks 14 | . 3 11 Successful 9 | . 2 7 Failed 5 | . 1 4 Catastrophic . | . . . Database Lockouts . | . . . Manual 2 | . . 2 Terminals 14 | . 3 11 Fabricators . | . . . Repair Stations . | . . . Recycling Units . | . . . Scanalyzers . | . . . Garrison Access . | . . . Terminal Hacks 9 | . 2 7 Record 3 | . 1 2 Robot Analysis 2 | . . 2 Alert Level 1 | . . 1 Recall Investigation 2 | . 1 1 Recall Reinforcements 1 | . . 1 Fabricator Hacks . | . . . Repair Station Hacks . | . . . Recycling Unit Hacks . | . . . Scanalyzer . | . . . Garrison Access Hacks . | . . . Unauthorized Hacks . | . . . Terminals . | . . . Fabricators . | . . . Repair Stations . | . . . Recycling Units . | . . . Scanalyzers . | . . . Garrison Access . | . . . Data Cores Recovered . | . . . Used . | . . . Hacking Detections 4 | . 1 3 Full Trace Events 3 | . 1 2 Feedback Events . | . . . Feedback Blocked . | . . . Robot Schematics Acquired . | . . . Robots Built . | . . . Authchips . | . . . Time . | . . . Total Robot Build Rating . | . . . Part Schematics Acquired . | . . . Parts Built . | . . . Authchips . | . . . Time . | . . . Total Part Build Rating . | . . . Parts Repaired . | . . . Time . | . . . Parts Recycled . | . . . Recycled Matter . | . . . Retrieved Matter . | . . . Retrieved Components . | . . . Parts Scanalyzed . | . . . Part Schematics Acquired . | . . . Parts Damaged . | . . . Bothacking | -11 -10 -9 ------------ Run | Yrd Mat Mat Used RIF Installer . | . . . Robots Hacked 6 | . . 6 Non-combat 5 | . . 5 Combat 1 | . . 1 Robot Hacks Applied 7 | . . 7 parse_system 3 | . . 3 no_distress 3 | . . 3 find_recycling 1 | . . 1 Relay Couplers Released . | . . . Fabnet Peak Effective % . | . . . Robots Rewired . | . . . Allies Hacked . | . . . Hacks Repelled . | . . . Allies | -11 -10 -9 -------- Run | Yrd Mat Mat Total Allies . | . . . Largest Group . | . . . Highest-Rated Group . | . . . Highest-Rated Ally . | . . . Total Orders . | . . . Ally Attacks . | . . . Total Damage . | . . . Kills . | . . . Allies Corrupted . | . . . Allies Melted . | . . . Intel | -11 -10 -9 ------- Run | Yrd Mat Mat Robot Analysis Total 2 | . . 2 Derelict Logs Recovered . | . . . Drone Launches . | . . . Drone Recoveries . | . . . Exploration | -11 -10 -9 ------------- Run | Yrd Mat Mat Turns Passed 840 | 86 353 401 Spaces Moved 538 | 66 246 226 Core 70 | 17 . 53 Treads . | . . . Legs 468 | 49 246 173 Wheels . | . . . Hover . | . . . Flight . | . . . Fastest Speed 50 | 50 120 50 Average Speed 129 | 101 120 148 Slowest Speed 450 | 120 120 450 Overloaded Moves . | . . . Propulsion Burnouts . | . . . Robots Hopped . | . . . Cave-ins Triggered . | . . . Exploration Rate (%) 19 | 5 40 14 Regions Visited 2 Branch Regions . Pre-discovered Areas . | . . . Known Exits Taken . | . . . Unknown Exits Taken 2 | 1 1 . Scrap Searched . | . . . Spaces Dug . | . . . Terrain Destroyed . | . . . Melee . | . . . Projectile . | . . . AOE . | . . . Terrain Rammed . | . . . Walls Destroyed . | . . . Machines Disabled . | . . . Actions | -11 -10 -9 --------- Run | Yrd Mat Mat Total 635 | 76 278 281 Wait 31 | . . 31 Move 536 | 65 245 226 Hop . | . . . Pick Up 11 | 2 7 2 Fast Attach 12 | 4 1 7 Attach 6 | 1 4 1 Detach 1 | . . 1 Swap 1 | . 1 . Drop 2 | . 2 . Fire 25 | 4 18 3 Melee 10 | . . 10 Ram . | . . . Kick . | . . . Crush . | . . . Escape Stasis . | . . . Rewire . | . . . Trap . | . . . Miscellaneous . | . . . Route ------- -11/Scrapyard -10/Materials -9/Materials History --------- Turn | Location | Event 2 | -11/Scrapyard | Met Revision 17 64 | -11/Scrapyard | Discovered new exit (range 8) 87 | -11/Scrapyard | Entered Materials 310 | -10/Materials | Build established: Mutant 402 | -10/Materials | Discovered new exit (range 4) 440 | -10/Materials | Entered another Materials area 440 | -9/Materials | Evolved 2 slots: Utility x1, Weapon x1 744 | -9/Materials | Released all parts (5) 762 | -9/Materials | Lost 4 parts (1p2n1w) 779 | -9/Materials | Core integrity fell below 50% 830 | -9/Materials | Core integrity fell below 20% 841 | -9/Materials | Destroyed by Y-45 Defender with Heavy Assault Rifle Last Messages --------------- Critical hit (Burn: +37). Aluminum Leg destroyed. Lgt. Ion Engine destroyed. Acquired Hvy. EM Pulse Gun. Released Lrg. Storage Unit. Released ECM Suite. Released Datajack. Released Hacking Suite. Released Hvy. EM Pulse Gun. Acquired Lrg. Storage Unit. R-06 Scavenger collects Hvy. EM Pulse Gun. R-06 Scavenger collects Datajack. R-06 Scavenger collects ECM Suite. U-05 Engineer builds a Door. Critical hit (Burn: +37). Y-45 Defender IFF system glitched. K-01 Serf cleans the Terminal. Y-45 Defender misfires. K-01 Serf cleans the Terminal. U-05 Engineer builds a Door. Map ----- +----------------------------------------------------+ | "T #?????? | | ################### #?????? | | ### #??????????????#### #?????? | | #?## ##############?##! #?????? | | #??# # #?#! #?????? | | #??# [# [ #?# #?????? | | ##??# + """"" #?#! #?????? | | ????# # """"""""" #?#! #?????? | | ????# # """ """ #?##! #?????? | | ??? ##############??#### #?????? | | ??####+##??????????????????# #?????? | | ??????????????????########## ###???? | | ??????????????????# # #???? | | ??????????????????# # #???? | | ??????????????????# "" + Tk #???? | | ??????????????????# "T # #???? | | ??????????????????# "" # #???? | | ??????????????????# ## ##???? | | ??????????????????######### #????? | | ??????????????????????????# #????? | | ??????????????????????????# #????? | | ????????????????????????###Y ###??? | | ????????????????? ????# #??? | | ??????????????? ? ""??# #??? | | ??????????????# """ #u #??? | | ??????????????#"" /@ #??? | | ??????????????#"T # #??? | | ??????????????#"" # #??? | | ??????????????# ?# #??? | | ??????????????########??## aw ##??? | | ?????????????????????????# #???? | | ?????????????????????????# #???? | | ?????????????????????????+ #???? | | ?????????????????????????# #???? | | ?????????????????????????# #???? | | ?????????????????????????# #???? | | ?????????????????????????# #???? | | ?????????????????????????? #???? | | ?????????????????????????? #???? | | ?????????????????????????? ????? | | ?????????????????????????? ??????? | | ???????????????????????????????????? | | ???????????????????????????????????? | | ???????????????????????????????????? | | ???????????????????????????????????? | | ???????????????????????????????????? | | ???????????????????????????????????? | | ???????????????????????????????????? | | ???????????????????????????????????? | | ???????????????????????????????????? | +----------------------------------------------------+ Best States ------------- Heat Dissipation 28 Energy Generation 10 Energy Capacity 250 Matter Stores 300 Matter Capacity 300 Sight Range 16 Terrain Scan Density 10 ECM Strength 1 Evasion (%) 55 Offensive Hacking 20 Item Schematics ----------------- None Robot Schematics ------------------ None Fabricated ------------ Nothing Alien Tech Used ----------------- None Achievements -------------- One Hack Too Far Challenges ------------ None Game ------ Seed MomentumRocketEngine Manual? 0 Play Time 00:15:28 Cumulative 1.1 hours Start 2024.04.13 @ 21:12:28 End 2024.04.13 @ 21:24:46 Sessions 1 Manual Loads 0 Difficulty Rogue Special Mode None Game No. 3 Rogue 3 Adventurer 0 Explorer 0 Win Type - Total 0 Types 0/0/0/0/0/0/0/0/0 Lore% 0 Gallery% 3 Achievement% 3 Wizard Run 0 Options --------- Layout 1 ASCII 0 Keyboard 0 Movement Vi Keybinds 0 Fullscreen 1 Font 32/Terminus Map View 77x35 Zoom Use 0% Tactical HUD 0 Map Filters NONE Filters NONE Steam 1 RUN: b2862a98-041c-48d0-9890-84d6835d3484